bitfinex/quotes_ETHUSD_20220311
["timestamp","ask_amount","ask_price","bid_price","bid_amount"]
[1646967799547,0.46566514,2530.9,2530.6,0.98762]
[1646967799747,2.44093514,2530.9,2530.6,0.98762]
[1646967799948,3.42858514,2530.9,2530.6,0.98762]
[1646967800199,3.42492,2530.9,2530.6,0.98762]
[1646967800393,3.4285852,2530.9,2530.6,0.98762]
[1646967800594,3.4285852,2530.9,2530.5,0.01381392]
[1646967801197,0.06366412,2530.7,2530.5,1.00145392]
[1646967801397,0.06366412,2530.7,2530.5,0.98764]
[1646967801610,1.05129412,2530.7,2530.5,0.98764]
[1646967801799,0.06148201,2530.6,2530.5,0.98764]
[1646967802000,0.06148201,2530.6,2530.4,1.9887842]
[1646967802200,2.03694201,2530.6,2530.4,1.9887842]
[1646967802400,1.97546,2530.6,2530.4,1.9887842]
[1646967802602,1.97546,2530.6,2530.4,1.97497]
[1646967803302,0.98763,2530.7,2530.4,1.97497]
[1646967803947,1.6727,2531.4,2531.0,1.0414496]
[1646967804151,0.462,2531.4,2531.0,1.0414496]
[1646967804345,0.462,2531.4,2530.3,3.50117079]
[1646967804545,0.462,2531.4,2530.7,1.97492]
[1646967804948,1.44946,2531.4,2530.7,1.97492]
[1646967805148,0.98744,2531.3,2530.7,1.97492]
[1646967805353,0.98744,2531.3,2530.8,1.13791756]
[1646967806151,0.98744,2531.3,2530.8,1.13363386]
[1646967806351,0.98744,2531.3,2530.9,0.98744]
[1646967806352,0.00378224,2531.2,2530.9,0.98744]
[1646967806758,0.00378224,2531.2,2531.0,2.17187]
[1646967806953,0.00378224,2531.2,2531.0,3.28557]
[1646967807152,0.00378224,2531.2,2531.1,1.0]
[1646967807353,1.1568,2532.1,2531.1,1.0]
[1646967807553,1.1568,2532.1,2531.6,1.06843327]
[1646967807798,0.9871,2532.0,2531.7,7.01812]
[1646967807999,0.88184416,2532.0,2531.7,7.01812]
[1646967808201,0.6593,2532.6,2531.7,7.01812]
[1646967808399,0.462,2532.6,2531.7,7.01812]
[1646967808600,0.98702,2532.2,2531.8,0.98706]
[1646967808801,1.44902,2532.2,2531.7,7.01812]
[1646967809000,1.44902,2532.2,2531.9,0.01380629]
[1646967809204,3.8,2532.1,2531.9,0.01380629]
[1646967809410,0.462,2532.0,2531.9,0.01380629]
[1646967809806,0.98726,2531.9,2531.3,6.0207757]
[1646967810008,2.43652,2531.9,2531.3,6.0207757]
[1646967810206,2.43652,2531.9,2531.7,0.01380738]
[1646967811007,1.97481,2531.8,2531.3,7.01855]
[1646967811208,7.22423,2531.8,2531.3,5.044]
[1646967811455,7.22423,2531.8,2531.5,0.0138082]
[1646967811456,3.72423,2531.8,2531.5,0.0138082]
[1646967811856,7.22423,2531.8,2531.5,0.0138082]
[1646967812063,3.72423,2531.8,2531.5,0.0138082]
[1646967812256,3.72423,2531.8,2531.3,5.044]
[1646967812456,0.05871957,2531.6,2531.3,5.044]
[1646967812657,0.462,2531.5,2531.4,0.01380901]
[1646967813558,0.462,2531.5,2531.3,5.044]
[1646967813759,0.0544749,2531.4,2531.3,5.044]
[1646967814057,0.5164749,2531.4,2531.3,6.03135]
[1646967814564,0.98742,2531.6,2531.3,6.03135]
[1646967814960,0.00340724,2531.5,2531.3,6.03135]
[1646967815598,0.00340724,2531.5,2531.3,5.53135]
[1646967815799,1.05234446,2531.6,2531.3,5.53135]
[1646967816199,0.00340724,2531.5,2531.3,5.53135]
[1646967817005,0.05675746,2531.5,2531.3,5.53135]
[1646967817209,0.0601647,2531.5,2531.3,5.53135]
[1646967817407,0.0601647,2531.5,2531.3,4.544]
[1646967817608,2.4968647,2531.5,2531.3,4.544]
[1646967817807,0.06149991,2531.4,2531.3,4.544]
[1646967818013,0.06149991,2531.4,2531.3,5.53136]
[1646967819444,0.06149991,2531.4,2531.3,4.544]
[1646967819852,0.52349991,2531.4,2531.3,4.544]
[1646967820249,0.82349991,2531.4,2531.3,4.544]
[1646967820649,0.762,2531.4,2531.3,4.544]
[1646967821852,0.762,2531.4,2531.3,4.54582036]
[1646967825499,0.462,2531.4,2531.3,4.54582036]
[1646967830301,3.962,2531.4,2531.3,0.00182036]
[1646967830505,4.262,2531.4,2531.3,0.00182036]
[1646967830696,5.212,2531.4,2531.3,0.00182036]
[1646967830896,5.4095,2531.4,2531.3,0.00182036]
[1646967831701,5.4095,2531.4,2531.1,0.00609701]
[1646967831904,7.38504,2531.4,2531.1,0.00609701]
[1646967832502,0.9876705,2531.3,2531.1,0.00609701]
[1646967832702,0.762,2531.2,2531.1,0.00182036]
[1646967832906,0.462,2531.2,2531.1,0.00182036]
[1646967834051,0.462,2531.2,2531.1,1.00182036]
[1646967834650,0.762,2531.2,2531.1,1.00182036]
[1646967835255,4.262,2531.2,2531.1,1.00182036]
[1646967835650,4.262,2531.2,2531.1,0.00182036]
[1646967836859,7.262,2531.2,2531.1,2.036e-05]
[1646967837058,4.2,2531.0,2530.5,0.00828827]
[1646967837264,3.0,2530.8,2530.5,0.00828827]
[1646967837458,7.1,2530.6,2529.7,5.6687]
[1646967837708,3.962,2530.5,2529.7,5.6687]
[1646967837897,4.262,2530.5,2529.7,5.6687]
[1646967838203,3.0,2530.4,2529.7,1.0]
[1646967838398,3.0,2529.9,2529.7,1.0]
[1646967838600,3.962,2529.8,2528.5,0.00096]
[1646967838799,4.262,2529.8,2528.9,0.00096]
[1646967838998,4.262,2529.8,2528.4,0.00096]
[1646967839299,4.262,2529.8,2528.5,0.93805131]
[1646967839503,4.262,2529.8,2528.6,0.00096]
[1646967840105,0.9884554,2529.4,2528.6,0.00096]
[1646967840408,3.962,2529.3,2528.4,0.00096]
[1646967840603,3.962,2529.3,2528.3,4.6687]
[1646967840806,0.05530879,2529.2,2528.3,4.6687]
[1646967841006,0.462,2529.1,2528.3,4.6687]
[1646967841202,0.462,2529.1,2528.3,5.6687]
[1646967841203,0.9886402,2528.8,2528.3,5.6687]
[1646967841444,0.05955541,2528.6,2528.5,0.01244212]
[1646967841651,0.52155541,2528.6,2528.5,0.01244212]
[1646967842257,0.52155541,2528.6,2528.3,4.6687]
[1646967842450,0.0561862,2528.5,2528.3,4.6687]
[1646967842751,0.462,2528.4,2528.3,4.68114335]
[1646967843553,0.462,2528.4,2528.3,5.65723]
[1646967844764,0.462,2528.4,2528.3,4.6687]
[1646967846012,0.462,2528.4,2528.3,5.6687]
[1646967846206,0.462,2528.4,2528.3,4.6687]
[1646967847011,0.462,2528.4,2528.3,5.6687]
[1646967847215,0.762,2528.4,2528.3,0.00913314]
[1646967847414,4.262,2528.4,2528.3,0.00913314]
[1646967848017,4.262,2528.4,2528.1,0.01244434]
[1646967848214,5.25098,2528.4,2528.1,0.01244434]
[1646967848414,5.25098,2528.4,2527.7,0.00096]
[1646967848618,5.44858,2528.4,2528.1,0.01244434]
[1646967848812,3.5,2528.3,2527.8,0.00945864]
[1646967849055,4.95105,2528.2,2527.8,0.00945864]
[1646967849254,0.98902,2528.1,2527.8,0.00945864]
[1646967849454,0.462,2528.0,2527.3,0.00096]
[1646967849654,0.462,2528.0,2527.2,0.25]
[1646967849854,4.4890992,2527.9,2527.2,0.25]
[1646967850155,1.45113,2527.8,2527.2,0.25]
[1646967850354,3.42939,2527.8,2527.2,0.25]
[1646967851761,2.93585449,2527.8,2527.2,0.25]
[1646967853398,2.93585449,2527.8,2527.4,0.01166957]
[1646967854408,2.93585449,2527.8,2527.2,1.23896]
[1646967854608,2.93585449,2527.8,2527.4,0.00910226]
[1646967855609,2.93585449,2527.8,2527.2,1.23896]
[1646967855810,2.93585449,2527.8,2527.4,0.00910226]
[1646967856656,2.93585449,2527.8,2527.2,2.22772]
[1646967856856,2.93585449,2527.8,2527.4,0.00287123]
[1646967857757,2.93585449,2527.8,2527.2,2.22772]
[1646967858157,2.93585449,2527.8,2527.4,0.00910226]
[1646967858759,0.06826897,2527.7,2527.4,0.00910226]
[1646967858964,0.53026897,2527.7,2527.4,0.00910226]
[1646967859160,0.53026897,2527.7,2527.2,0.25]
[1646967859460,4.33026897,2527.7,2527.2,0.25]
[1646967859666,4.33026897,2527.7,2527.4,0.01110938]
[1646967859667,3.5,2527.6,2527.4,0.01110938]
[1646967859861,2.4,2527.5,2527.4,0.01110938]
[1646967860219,6.662,2527.5,2527.4,0.01110938]
[1646967860707,1.9789147,2527.4,2526.9,0.00844481]
[1646967861005,5.781,2527.1,2526.9,0.00844481]
[1646967861205,3.962,2527.0,2526.9,0.00844481]
[1646967861407,3.962,2527.0,2526.2,0.00096]
[1646967861408,4.2,2526.9,2526.2,0.00096]
[1646967861614,8.781,2526.4,2525.9,1.0]
[1646967861811,6.77092,2526.1,2525.0,0.01643939]
[1646967862011,0.9900123,2525.9,2525.0,0.01643939]
[1646967862207,4.1598,2526.0,2525.0,0.01643939]
[1646967862208,3.962,2525.8,2525.0,0.01643939]
[1646967862409,0.462,2525.7,2525.0,0.01643939]
[1646967862608,3.5,2525.6,2525.0,0.01643939]
[1646967862810,0.462,2525.5,2525.0,0.01643939]
[1646967863009,4.49036,2525.4,2525.0,0.01643939]
[1646967863211,4.49036,2525.4,2524.4,4.5101]
[1646967863212,4.2,2525.2,2524.4,4.5101]
[1646967863411,4.2,2525.2,2524.3,0.1479156]
[1646967863412,12.743,2525.1,2524.3,0.1479156]
[1646967863610,5.781,2524.8,2524.3,0.1479156]
[1646967863809,0.462,2524.7,2524.3,0.1479156]
[1646967864059,6.543,2524.7,2524.3,0.1479156]
[1646967864263,7.53356,2524.7,2524.3,0.1479156]
[1646967864459,4.2,2524.6,2523.7,0.6585]
[1646967864663,4.2,2524.6,2523.9,2.47965496]
[1646967864664,2.44327,2524.5,2523.9,2.47965496]
[1646967864860,2.44327,2524.5,2523.8,1.0]
[1646967864861,4.69101,2523.9,2523.8,1.0]
[1646967865066,3.0,2523.8,2522.8,0.0111131]
[1646967865261,0.462,2523.7,2522.8,0.0111131]
[1646967865462,0.462,2523.7,2523.1,0.81135916]
[1646967865463,5.781,2523.6,2523.1,0.81135916]
[1646967865662,3.35110446,2524.0,2523.1,0.71135916]
[1646967865663,0.462,2523.5,2523.1,0.71135916]
[1646967865862,0.462,2523.5,2523.2,0.19393037]
[1646967866361,7.3306,2524.8,2523.3,4.2]
[1646967866362,1.9808,2524.4,2523.3,4.2]
[1646967866565,7.06512691,2525.2,2523.6,0.99027]
[1646967866566,0.462,2524.2,2523.6,0.99027]
[1646967866875,0.462,2524.5,2523.6,0.99027]
[1646967867067,0.462,2524.6,2524.4,0.89763544]
[1646967867268,0.00703607,2524.5,2524.4,0.89763544]
[1646967867901,0.00703607,2524.5,2524.3,0.19393037]
[1646967868105,0.46903607,2524.5,2524.2,0.00327912]
[1646967868505,0.46903607,2524.5,2524.3,0.19393037]
[1646967868906,0.46903607,2524.5,2524.1,0.99135077]
[1646967869109,0.46903607,2524.5,2524.1,0.00121077]
[1646967869308,0.46903607,2524.5,2524.1,0.01167218]
[1646967869715,0.46903607,2524.5,2524.1,1.00182218]
[1646967870011,0.46903607,2524.5,2524.1,1.18529114]
[1646967870609,0.46903607,2524.5,2524.2,0.87466705]
[1646967871211,0.00703607,2524.5,2524.2,0.87466705]
[1646967871460,0.00703607,2524.5,2524.1,0.01167218]
[1646967871461,0.462,2524.4,2524.1,0.01167218]
[1646967871660,0.05615414,2524.2,2524.1,0.01167218]
[1646967871857,0.462,2524.2,2524.1,0.01046141]
[1646967872061,0.51824986,2524.2,2524.1,0.01046141]
[1646967872458,0.51824986,2524.2,2523.4,0.98906492]
[1646967872459,0.0603087,2524.1,2523.4,0.98906492]
[1646967872656,0.0603087,2524.1,2523.2,4.40976]
[1646967872657,0.462,2524.0,2523.9,0.00327956]
[1646967873459,0.462,2524.0,2523.3,0.00096]
[1646967873659,1.98133,2523.8,2523.3,0.82158301]
[1646967873860,1.98133,2523.8,2523.7,0.01046306]
[1646967874059,2.44333,2523.8,2523.7,0.01046306]
[1646967874261,0.462,2523.8,2523.7,0.83005541]
[1646967874670,3.50703533,2524.4,2523.7,0.83005541]
[1646967874671,0.00703533,2524.4,2523.7,0.83005541]
[1646967874862,0.462,2524.2,2524.1,1.01555997]
[1646967875060,0.00703533,2524.4,2524.1,1.01555997]
[1646967875061,0.46903533,2524.4,2524.1,1.01555997]
[1646967875500,0.46903533,2524.4,2523.7,0.99023]
[1646967875801,0.46903533,2524.4,2523.5,0.01046389]
[1646967875999,0.46903533,2524.4,2523.4,1.0]
[1646967876199,1.98087,2524.3,2523.8,0.01046265]
[1646967876400,0.462,2524.2,2523.8,0.01046265]
[1646967876604,0.462,2524.2,2523.8,1.14773665]
[1646967877208,0.462,2524.2,2523.8,1.137274]
[1646967878005,1.98059,2524.7,2523.8,1.137274]
[1646967878210,0.198,2525.2,2523.8,1.137274]
[1646967878408,0.462,2525.1,2523.9,1.0]
[1646967878608,0.462,2525.2,2524.1,1.0]
[1646967879449,0.462,2525.2,2524.6,0.91360924]
[1646967879651,0.462,2525.2,2524.7,5.5455]
[1646967880047,1.45204,2525.2,2524.7,5.5455]
[1646967880248,1.45204,2525.2,2524.7,4.5556]
[1646967881048,1.45204,2525.2,2524.7,4.56605892]
[1646967881855,0.46904054,2525.2,2524.8,0.00111455]
[1646967882903,0.46904054,2525.2,2524.9,0.90178887]
[1646967883103,0.46904054,2525.2,2524.8,0.00111455]
[1646967883304,0.53426347,2525.2,2524.8,0.00111455]
[1646967883705,1.51583353,2525.2,2524.8,0.00111455]
[1646967884104,1.51583353,2525.2,2524.9,1.07945639]
[1646967884707,0.52585353,2525.2,2524.9,1.07945639]
[1646967884905,0.00704054,2525.2,2524.9,1.07945639]
[1646967885708,0.00704054,2525.2,2525.0,2.04858604]
[1646967885912,0.00704054,2525.2,2525.1,0.07230532]
[1646967886311,0.00704054,2525.2,2525.0,3.97949]
[1646967887162,0.3957,2525.8,2525.1,0.00107333]
[1646967887459,0.99687464,2525.9,2525.5,0.95513734]
[1646967887671,0.00716464,2525.9,2525.5,0.90513734]
[1646967887865,0.00716464,2525.9,2525.6,3.5]
[1646967888059,0.00716464,2525.9,2525.5,0.90513734]
[1646967888260,0.06232335,2526.7,2526.4,0.82227952]
[1646967888562,0.26083365,2527.0,2526.4,0.82227952]
[1646967888762,0.06303365,2527.0,2525.9,0.06786187]
[1646967888960,0.06303365,2527.0,2525.9,0.06690187]
[1646967889161,1.05238365,2527.0,2525.9,0.06690187]
[1646967889360,0.05815116,2526.8,2526.2,1.97861]
[1646967889561,0.98942,2526.7,2526.2,1.98840943]
[1646967890403,0.98942,2526.7,2526.2,1.97861]
[1646967890800,0.98942,2526.7,2526.2,1.98840943]
[1646967891005,0.05815116,2526.8,2526.5,0.86304507]
[1646967891402,0.05815116,2526.8,2526.2,4.64099943]
[1646967891606,0.05815116,2526.8,2526.2,4.6312]
[1646967892006,0.05815116,2526.8,2526.4,1.98820865]
[1646967892204,0.00347545,2527.2,2526.6,0.98922]
[1646967892405,0.06474556,2527.2,2526.6,0.98922]
[1646967892809,0.06127011,2527.2,2526.6,0.98922]
[1646967893207,0.462,2527.1,2526.6,0.01045085]
[1646967893412,0.05965162,2526.9,2526.6,0.01045085]
[1646967893610,0.462,2526.8,2526.6,0.01045085]
[1646967893808,0.05892863,2526.7,2526.6,0.01045085]
[1646967894052,0.0638351,2526.6,2526.2,5.62062]
[1646967894254,0.0638351,2526.6,2526.4,0.01045168]
[1646967894652,0.0638351,2526.6,2526.5,1.08090142]
[1646967895155,0.462,2526.9,2526.5,2.07020142]
[1646967895359,0.05697485,2526.8,2526.5,2.07020142]
[1646967895955,0.05697485,2526.8,2526.5,0.9893]
[1646967896761,0.05697485,2526.8,2526.4,0.01045188]
[1646967896960,0.05697485,2526.8,2526.4,0.99977188]
[1646967897161,1.04631485,2526.8,2526.4,0.99977188]
[1646967897461,1.04492471,2526.8,2526.4,0.01045188]
[1646967897702,1.04492471,2526.8,2526.2,7.65789319]
[1646967897906,0.05558471,2526.8,2526.6,2.00538208]
[1646967898102,0.99274554,2527.2,2526.6,2.00538208]
[1646967898301,0.00349554,2527.2,2526.6,2.00538208]
[1646967898902,0.06670009,2527.3,2526.6,2.00538208]
[1646967899101,0.00349594,2527.2,2526.6,2.01583293]
[1646967899303,0.00349594,2527.2,2526.6,0.99970085]
[1646967899502,0.06809939,2527.2,2526.6,0.99970085]
[1646967899699,0.06809939,2527.2,2526.6,0.01045085]
[1646967900101,2.50509345,2527.2,2526.4,1.97842]
[1646967900303,0.06129817,2527.0,2526.6,0.01045085]
[1646967901302,0.06129817,2527.0,2526.4,2.88431615]
[1646967901556,0.06129817,2527.0,2526.6,0.98925]
[1646967902758,0.06129817,2527.0,2526.5,0.01045126]
[1646967903165,0.06677948,2526.8,2526.5,0.01045126]
[1646967903363,0.462,2526.7,2526.5,0.01045126]
[1646967903559,0.06664927,2527.0,2526.5,0.01045126]
[1646967903560,0.462,2526.6,2526.5,0.01045126]
[1646967903759,0.462,2526.6,2526.2,4.6312]
[1646967903960,0.06619499,2526.5,2526.2,5.47465863]
[1646967904160,0.06657345,2526.7,2526.4,0.01045188]
[1646967904360,0.05781511,2526.6,2526.4,0.01045188]
[1646967904660,0.462,2526.5,2526.4,0.01045188]
[1646967904860,0.52108067,2526.5,2526.4,0.98932]
[1646967908309,0.52108067,2526.5,2526.2,7.46365134]
[1646967908505,0.05778866,2526.4,2526.2,7.45319863]
[1646967908709,0.462,2526.8,2526.2,7.46365134]
[1646967908971,0.06876653,2526.9,2526.2,7.46365134]
[1646967909160,0.0549545,2527.1,2526.7,0.96385924]
[1646967909361,0.00349388,2527.2,2526.7,1.97806]
[1646967909566,0.46549388,2527.2,2526.3,0.00096]
[1646967909860,0.06962284,2527.1,2526.2,6.60974]
[1646967910061,0.06962284,2527.1,2526.6,0.01045085]
[1646967910465,0.06962284,2527.1,2526.8,1.04362215]
[1646967910765,0.05808429,2527.3,2526.8,1.04362215]
[1646967911163,1.18687,2527.8,2526.8,1.04362215]
[1646967911164,0.00348671,2527.2,2526.8,1.04362215]
[1646967911363,0.00348671,2527.2,2526.8,0.99362215]
[1646967911569,0.00348671,2527.2,2526.8,1.98272215]
[1646967912073,0.06950298,2527.8,2526.9,3.55881821]
[1646967912271,0.06950298,2527.8,2527.6,1.10407818]
[1646967912468,0.06064861,2528.1,2527.6,1.10407818]
[1646967912703,0.06064861,2528.1,2527.4,1.97754]
[1646967912903,0.06064861,2528.1,2527.5,4.7994]
[1646967913105,0.01064861,2528.1,2527.5,4.7994]
[1646967913506,0.01064861,2528.1,2527.5,4.80919438]
[1646967913507,0.00348681,2527.9,2527.5,4.80919438]
[1646967913703,0.00348681,2527.9,2527.5,5.78304268]
[1646967914104,0.00348681,2527.9,2527.6,0.98882]
[1646967914505,0.47264861,2528.1,2527.6,0.98882]
[1646967914704,0.00348172,2527.8,2527.6,0.98882]
[1646967915707,5.871,2528.8,2527.6,1.18662]
[1646967916013,5.871,2528.8,2528.2,1.02458773]
[1646967916014,0.03426716,2528.5,2528.2,1.02458773]
[1646967916209,0.462,2528.9,2528.3,0.98849]
[1646967916472,0.04663671,2528.8,2528.3,1.91029]
[1646967916867,0.05937504,2529.0,2528.3,1.91029]
[1646967917066,0.00348191,2528.7,2528.3,1.91029]
[1646967917766,0.00348191,2528.7,2528.6,0.91268072]
[1646967918167,0.05931765,2529.5,2528.6,1.11028072]
[1646967918365,0.05931765,2529.5,2528.6,1.18609056]
[1646967918569,0.05931765,2529.5,2528.7,4.4483]
[1646967918965,3.55931765,2529.5,2528.7,4.4483]
[1646967919165,0.05927484,2529.4,2528.7,4.4483]
[1646967919367,1.45047,2529.3,2528.7,4.4483]
[1646967919566,0.05341735,2529.1,2528.7,4.4483]
[1646967920066,1.04188735,2529.1,2528.7,4.4483]
[1646967920506,0.05368558,2528.9,2528.7,4.4483]
[1646967921707,0.05749437,2529.1,2528.7,5.43669]
[1646967921906,0.00347281,2528.9,2528.7,6.58069]
[1646967922306,0.00347281,2528.9,2528.7,5.5923]
[1646967922907,0.05749437,2529.1,2528.7,5.5923]
[1646967923108,0.00347317,2528.9,2528.7,4.4483]
[1646967923312,0.00347317,2528.9,2528.8,1.10835908]
[1646967923511,0.00347317,2528.9,2528.8,2.19415908]
[1646967924156,0.05802859,2529.8,2528.8,2.19415908]
[1646967924359,0.05802859,2529.8,2529.6,0.93584074]
[1646967924556,1.6401,2530.4,2529.7,4.6436]
[1646967924557,0.45531403,2530.4,2529.7,4.6436]
[1646967924758,0.05951403,2530.4,2529.7,4.6436]
[1646967925556,0.00347255,2530.2,2529.7,5.53977279]
[1646967926362,0.00347255,2530.2,2529.8,0.06451279]
[1646967926560,0.988,2530.3,2529.7,7.09165279]
[1646967926761,0.00347504,2530.1,2529.7,7.09165279]
[1646967927265,0.00347504,2530.1,2529.8,1.9757]
[1646967927463,0.00347504,2530.1,2530.0,0.98784]
[1646967927704,0.04757146,2530.7,2530.0,0.98784]
[1646967927904,0.04757146,2530.7,2530.0,1.56129871]
[1646967928105,0.04757146,2530.7,2530.0,1.18534]
[1646967928305,0.04757146,2530.7,2530.0,0.1975]
[1646967928505,0.04757146,2530.7,2530.0,0.3]
[1646967928705,0.04757146,2530.7,2529.9,0.1975]
[1646967928911,0.04648518,2530.6,2529.8,2.9757]
[1646967929106,2.02251518,2530.6,2529.8,1.0]
[1646967929307,0.04749712,2530.4,2529.8,1.0]
[1646967929506,0.5111092,2530.3,2529.8,1.0]
[1646967929914,0.05874412,2530.2,2529.8,1.0]
[1646967930305,0.06255444,2530.2,2529.8,1.0]
[1646967931310,0.05874412,2530.2,2529.8,1.0]
[1646967932371,1.04679412,2530.2,2529.8,1.0]
[1646967932571,0.04752927,2530.1,2529.8,1.0]
[1646967932973,0.05300914,2529.9,2529.8,1.0]
[1646967934272,0.05300914,2529.9,2529.8,1.98795]
[1646967934674,0.05300914,2529.9,2529.8,3.08347312]
[1646967934874,0.51798462,2530.3,2529.8,2.98347312]
[1646967935072,0.04690811,2530.2,2529.8,2.98347312]
[1646967935306,0.00381031,2530.0,2529.8,1.88795]
[1646967935505,0.00381031,2530.0,2529.7,4.6436]
[1646967936206,0.04690811,2530.2,2529.7,4.6436]
[1646967936405,0.0038329,2530.0,2529.7,4.6436]
[1646967937009,0.0038329,2530.0,2529.7,5.63157]
[1646967937212,0.0038329,2530.0,2529.9,0.71078342]
[1646967937410,0.06058622,2530.5,2529.9,1.48208342]
[1646967937612,0.0038329,2530.0,2529.9,1.48208342]
[1646967937816,0.0038329,2530.0,2529.9,1.67958342]
[1646967938510,0.06058622,2530.5,2529.9,2.66743342]
[1646967938966,0.0038329,2530.1,2530.0,0.0643763]
[1646967939160,0.0038329,2530.1,2530.0,0.2618763]
[1646967939758,0.98786,2530.6,2530.0,0.2618763]
[1646967940056,0.00383289,2530.2,2530.0,0.5618763]
[1646967940259,0.00383289,2530.2,2530.0,0.2618763]
[1646967940458,0.00383289,2530.2,2530.0,0.0643763]
[1646967940657,0.00383289,2530.2,2529.8,0.06934812]
[1646967941057,0.98802,2530.3,2529.8,1.20528154]
[1646967941258,0.00383289,2530.2,2529.8,1.20528154]
[1646967941460,0.00383289,2530.2,2529.7,6.6316]
[1646967942062,0.98798,2530.3,2529.7,6.6316]
[1646967942465,0.0038329,2530.1,2529.8,0.0841988]
[1646967942722,0.0038329,2530.1,2529.7,5.6436]
[1646967943317,0.05496993,2530.3,2529.7,5.6436]
[1646967943516,0.51696993,2530.3,2529.7,5.6436]
[1646967943717,0.0038329,2530.0,2529.7,5.6436]
[1646967944118,0.0038329,2530.0,2529.7,4.6436]
[1646967944119,0.9919029,2530.0,2529.7,4.6436]
[1646967944321,0.0038329,2530.0,2529.7,4.6436]
[1646967944517,0.04782086,2530.2,2529.7,4.6436]
[1646967944917,0.0038329,2530.0,2529.7,4.72603548]
[1646967945820,0.462,2530.3,2529.7,4.72603548]
[1646967946019,0.0038329,2530.0,2529.7,4.72603548]
[1646967946220,0.0038329,2530.0,2529.8,0.98797]
[1646967946468,0.0038329,2530.0,2529.7,4.6436]
[1646967946663,0.0038329,2530.0,2529.7,4.72591923]
[1646967946865,0.462,2530.1,2529.7,4.6436]
[1646967947161,0.0038329,2530.0,2529.7,4.6436]
[1646967948063,0.05807447,2530.0,2529.7,4.6436]
[1646967948463,0.06190737,2530.0,2529.7,4.6436]
[1646967949267,0.05807447,2530.0,2529.7,4.6436]
[1646967949667,0.06190737,2530.0,2529.8,0.98796]
[1646967950067,0.07475798,2530.0,2529.8,0.98796]
[1646967950309,0.07475798,2530.0,2529.7,4.6436]
[1646967950511,0.07092508,2530.0,2529.7,4.6436]
[1646967951009,0.01668351,2530.0,2529.8,0.96342068]
[1646967951206,0.01668351,2530.0,2529.7,4.58028]
[1646967951811,0.01285061,2530.0,2529.7,4.41573]
[1646967952020,0.01668351,2530.0,2529.7,4.37761]
[1646967952213,0.01668351,2530.0,2529.7,5.28607869]
[1646967952414,0.01668351,2530.0,2529.8,0.98793]
[1646967953012,0.01285061,2530.0,2529.8,0.98793]
[1646967953213,0.01668351,2530.0,2529.8,0.98793]
[1646967953614,0.01668351,2530.0,2529.7,4.37761]
[1646967953814,0.462,2529.9,2529.7,4.37761]
[1646967954056,0.04924003,2529.8,2529.7,4.37761]
[1646967955855,0.51124003,2529.8,2529.7,4.37761]
[1646967957360,0.52432787,2529.8,2529.7,4.37761]
[1646967958407,0.01308784,2529.8,2529.7,4.37761]
[1646967958706,0.01308784,2529.8,2529.7,4.44659384]
[1646967958905,0.01308784,2529.8,2529.7,4.37761]
[1646967959105,0.01308784,2529.8,2529.7,5.37761]
[1646967959304,0.01308784,2529.8,2529.7,6.37761]
[1646967960707,0.01308784,2529.8,2529.7,7.09771]
[1646967961860,0.01308784,2529.8,2529.7,7.09856482]
[1646967964362,0.01308784,2529.8,2529.7,6.37846482]
[1646967964562,0.01308784,2529.8,2529.7,5.37846482]
[1646967964762,0.01308784,2529.8,2529.7,4.37846482]
[1646967967616,0.05324124,2530.1,2529.7,4.37846482]
[1646967967617,0.00382727,2529.9,2529.7,4.37846482]
[1646967968616,0.05324124,2530.1,2529.7,4.37846482]
[1646967968815,0.00382727,2529.9,2529.7,4.37846482]
[1646967969686,0.05324124,2530.1,2529.7,4.37846482]
[1646967970087,0.00382727,2529.9,2529.7,4.37846482]
[1646967970487,0.00382727,2529.9,2529.7,5.36648482]
[1646967970887,0.05324124,2530.1,2529.7,4.37846482]
[1646967971090,0.462,2530.0,2529.7,4.37846482]
[1646967971290,0.06354771,2529.9,2529.7,4.37846482]
[1646967971495,0.462,2529.8,2529.7,4.37846482]
[1646967971695,0.50809482,2529.8,2529.7,4.37846482]
[1646967972597,0.462,2529.8,2529.7,4.37846482]
[1646967974815,0.50856786,2529.8,2529.7,4.37846482]
[1646967976014,0.50759767,2529.8,2529.7,4.37846482]
[1646967976866,0.50759767,2529.8,2529.7,5.36649482]
[1646967977869,0.50759767,2529.8,2529.7,4.37846482]
[1646967983816,0.50759767,2529.8,2529.7,5.27411017]
[1646967984059,0.46102981,2529.8,2529.7,5.27411017]
[1646967984256,0.05327131,2530.1,2529.8,0.98796]
[1646967984454,0.00382727,2529.9,2529.8,0.98796]
[1646967985459,1.97582,2530.9,2529.8,0.98796]
[1646967985460,0.462,2530.6,2530.2,1.09383549]
[1646967985658,0.0545729,2530.7,2530.3,0.98775]
[1646967986863,0.00382724,2530.6,2530.3,2.09014967]
[1646967988805,0.27040014,2530.9,2530.3,2.09014967]
[1646967989205,0.27040014,2530.9,2530.3,0.98775]
[1646967989507,0.00382724,2530.6,2530.3,0.98775]
[1646967990308,0.31354618,2530.9,2530.3,0.98775]
[1646967991206,0.31354618,2530.9,2530.2,0.90070602]
[1646967991663,0.00382723,2530.7,2530.2,0.90070602]
[1646967991866,0.0130775,2530.6,2530.5,0.00090093]
[1646967997211,0.00381307,2530.7,2530.3,1.97620093]
[1646967997414,0.462,2530.6,2530.3,0.00090093]
[1646967997614,0.462,2530.5,2530.3,0.00090093]
[1646967997812,0.462,2530.4,2530.3,0.00090093]
[1646968001869,0.462,2530.4,2529.9,1.0200675]
[1646968002071,0.462,2530.4,2530.0,0.98782]
[1646968002273,0.462,2530.4,2530.0,1.28782]
[1646968002709,0.462,2530.4,2529.9,0.00092829]
[1646968002909,0.04678086,2530.3,2529.9,0.00092829]
[1646968003110,0.462,2530.2,2529.7,4.12853829]
[1646968003309,0.04407643,2530.0,2529.7,4.12853829]
[1646968003509,0.462,2529.9,2529.3,1.00340675]
[1646968003710,0.04276945,2529.8,2529.3,1.00340675]
[1646968003914,0.462,2529.7,2529.3,1.00340675]
[1646968004110,0.462,2529.7,2529.3,1.99154675]
[1646968004911,0.462,2529.7,2529.3,2.18904675]